fUSD/lending_fUSD_20240719
["ID","MTS","AMOUNT","RATE_DAILY","PERIOD"]
[332652996,1721405490619,-500.0,0.00033835,14]
[332652997,1721405490630,-573.17,0.00033835,14]
[332652998,1721405490641,-500.0,0.00033835,14]
[332652999,1721405490654,-10933.25,0.00033835,14]
[332653000,1721405490664,-500.0,0.00033835,14]
[332653001,1721405490673,-1409.33,0.00033835,14]
[332653002,1721405490682,-500.0,0.00033835,14]
[332653003,1721405490691,-1154.96,0.00033835,14]
[332653004,1721405490700,-3354.51,0.00033835,14]
[332653005,1721405490709,-3674.93,0.00033835,14]
[332653006,1721405490718,-4811.1,0.00033835,14]
[332653007,1721405490728,-1405.5,0.00033835,14]
[332653008,1721405490737,-735.83,0.00033835,14]
[332653009,1721405490747,-1524.71,0.00033835,14]
[332653010,1721405490756,-1682.97,0.00033835,14]
[332653011,1721405490767,-3837.86,0.00033835,14]
[332653012,1721405490777,-500.0,0.00033835,14]
[332653013,1721405490787,-5839.3,0.00033835,14]
[332653014,1721405490795,-500.0,0.00033835,14]
[332653015,1721405490806,-1215.13,0.00033835,14]
[332653016,1721405490815,-514.6921235,0.00033835,14]
[332653017,1721405490826,-5878.24,0.00033835,14]
[332653018,1721405490837,-500.0,0.00033835,14]
[332653019,1721405490848,-500.0,0.00033835,14]
[332653020,1721405490857,-500.0,0.00033835,14]
[332653021,1721405490867,-884.11,0.00033835,14]
[332653022,1721405490878,-500.0,0.00033835,14]
[332653023,1721405490887,-1263.94,0.00033835,14]
[332653024,1721405490897,-500.0,0.00033835,14]
[332653025,1721405490906,-500.0,0.00033835,14]
[332653026,1721405490915,-470.69185626,0.00033835,14]
[332653027,1721405490924,-1861.13,0.00033835,14]
[332653028,1721405490935,-171.97718856,0.00033835,14]
[332653029,1721405490944,-4030.15,0.00033835,14]
[332653030,1721405490953,-575.36,0.00033835,14]
[332653031,1721405490963,-1017.03,0.00033835,14]
[332653032,1721405490973,-500.0,0.00033835,14]
[332653033,1721405490984,-500.0,0.00033835,14]
[332653034,1721405490994,-1691.71,0.00033835,14]
[332653035,1721405491004,-500.0,0.00033835,14]
[332653036,1721405491014,-500.0,0.00033835,14]
[332653037,1721405491024,-1374.24,0.00033835,14]
[332653038,1721405491035,-768.4,0.00033835,14]
[332653039,1721405491044,-500.0,0.00033835,14]
[332653040,1721405491055,-1697.84,0.00033835,14]
[332653041,1721405491064,-2559.7,0.00033835,14]
[332653042,1721405491074,-500.0,0.00033835,14]
[332653043,1721405491083,-500.0,0.00033835,14]
[332653044,1721405491092,-500.0,0.00033835,14]
[332653045,1721405491101,-624.46,0.00033835,14]
[332653046,1721405491110,-1946.59,0.00033835,14]
[332653047,1721405491119,-500.0,0.00033835,14]
[332653048,1721405491128,-2272.36,0.00033835,14]
[332653049,1721405491137,-500.0,0.00033835,14]
[332653050,1721405491147,-500.0,0.00033835,14]
[332653051,1721405491156,-500.0,0.00033835,14]
[332653052,1721405491165,-500.0,0.00033835,14]
[332653053,1721405491173,-1917.13,0.00033835,14]
[332653054,1721405491182,-500.0,0.00033835,14]
[332653055,1721405491195,-500.0,0.00033835,14]
[332653056,1721405491207,-512.29374311,0.00033835,14]
[332653057,1721405491216,-500.0,0.00033835,14]
[332653058,1721405491228,-500.0,0.00033835,14]
[332653059,1721405491239,-500.0,0.00033835,14]
[332653060,1721405491253,-3027.94,0.00033835,14]
[332653061,1721405491263,-973.22,0.00033835,14]
[332653062,1721405491274,-500.0,0.00033835,14]
[332653063,1721405491284,-500.0,0.00033835,14]
[332653064,1721405491295,-500.0,0.00033835,14]
[332653065,1721405491304,-500.0,0.00033835,14]
[332653066,1721405491314,-2408.88,0.00033835,14]
[332653067,1721405491326,-500.0,0.00033835,14]
[332653068,1721405491337,-500.0,0.00033835,14]
[332653069,1721405491347,-500.0,0.00033835,14]
[332653070,1721405491357,-511.69744705,0.00033835,14]
[332653071,1721405491367,-731.9,0.00033835,14]
[332653072,1721405491379,-646.1,0.00033835,14]
[332653073,1721405491390,-500.0,0.00033835,14]
[332653074,1721405491404,-586.55,0.00033835,14]
[332653075,1721405491414,-500.0,0.00033835,14]
[332653076,1721405491423,-500.0,0.00033835,14]
[332653077,1721405491432,-597.62,0.00033835,14]
[332653078,1721405491444,-1178.13,0.00033835,14]
[332653079,1721405491454,-2668.54,0.00033835,14]
[332653080,1721405491465,-833.33,0.00033835,14]
[332653081,1721405491476,-1314.6,0.00033835,14]
[332653082,1721405491601,-2734.59,0.00033835,14]
[332653083,1721405491619,-2830.23,0.00033835,14]
[332653084,1721405491628,-632.52,0.00033835,14]
[332653085,1721405491638,-1416.89,0.00033835,14]
[332653086,1721405491651,-695.28,0.00033835,120]
[332653087,1721405491660,-500.0,0.00033835,14]
[332653088,1721405491669,-1341.92,0.00033835,14]
[332653089,1721405491679,-615.47231516,0.00033835,14]
[332653090,1721405491688,-4660.25,0.00033835,14]
[332653091,1721405491701,-2241.29,0.00033835,14]
[332653092,1721405491710,-500.0,0.00033835,14]
[332653093,1721405491719,-500.0,0.00033835,14]
[332653094,1721405491729,-500.0,0.00033835,14]
[332653095,1721405491739,-501.73652073,0.00033835,14]
[332653096,1721405491749,-957.11,0.00033835,14]
[332653097,1721405491758,-877.56,0.00033835,14]
[332653098,1721405491768,-500.0,0.00033835,14]
[332653099,1721405491778,-1477.9,0.00033835,14]
[332653100,1721405491788,-500.0,0.00033835,14]
[332653101,1721405491798,-500.0,0.00033835,14]
[332653102,1721405491808,-500.0,0.00033835,14]
[332653103,1721405491818,-597.23,0.00033835,14]
[332653104,1721405491828,-500.0,0.00033835,14]
[332653105,1721405491838,-689.3,0.00033835,14]
[332653106,1721405491848,-1046.23,0.00033835,14]
[332653107,1721405491858,-1705.13,0.00033835,14]
[332653108,1721405491867,-500.0,0.00033835,14]
[332653109,1721405491877,-778.74,0.00033835,14]
[332653110,1721405491889,-679.86,0.00033835,14]
[332653111,1721405491901,-500.0,0.00033835,14]
[332653112,1721405491911,-542.8,0.00033835,14]
[332653113,1721405491920,-500.0,0.00033835,14]
[332653114,1721405491930,-500.0,0.00033835,14]
[332653115,1721405491940,-372.50780851,0.00033835,14]
[332653116,1721405491950,-843.49,0.00033835,14]
[332653117,1721405491959,-292.36,0.00033835,14]
[332653118,1721405491969,-500.0,0.00033835,14]
[332653119,1721405491978,-500.0,0.00033835,14]
[332653120,1721405491987,-500.0,0.00033835,14]
[332653121,1721405491996,-500.0,0.00033835,14]
[332653122,1721405492006,-500.0,0.00033835,14]
[332653123,1721405492015,-212.54,0.00033835,14]
[332653124,1721405492024,-500.0,0.00033835,14]
[332653125,1721405492033,-500.0,0.00033835,14]
[332653126,1721405492043,-500.0,0.00033835,14]
[332653127,1721405492052,-500.0,0.00033835,14]
[332653128,1721405492061,-500.0,0.00033835,14]
[332653129,1721405492070,-500.0,0.00033835,14]
[332653130,1721405492080,-500.0,0.00033835,14]
[332653131,1721405492089,-500.0,0.00033835,14]
[332653132,1721405492098,-500.0,0.00033835,14]
[332653133,1721405492108,-754.08,0.00033835,14]
[332653134,1721405492118,-500.0,0.00033835,14]
[332653135,1721405492130,-545.47,0.00033835,14]
[332653136,1721405492141,-903.09,0.00033835,14]
[332653137,1721405492154,-2912.7,0.00033835,14]
[332653138,1721405492163,-1000.0,0.00033835,2]
[332653139,1721405492173,-500.0,0.00033835,7]
[332653140,1721405492182,-803.41,0.00033835,14]
[332653141,1721405492192,-151.0,0.00033835,7]
[332653142,1721405492202,-151.0,0.00033835,7]
[332653143,1721405492213,-151.0,0.00033835,7]
[332653144,1721405492222,-319.686349,0.00033835,7]
[332653145,1721405492234,-319.686349,0.00033835,7]
[332653146,1721405492246,-319.686349,0.00033835,7]
[332653147,1721405492258,-319.6863589,0.00033835,7]
[332653148,1721405492267,-151.0,0.00033835,7]
[332653149,1721405492279,-223.145616,0.00033835,7]
[332653150,1721405492291,-218.803622,0.00033835,7]
[332653151,1721405492301,-218.803622,0.00033835,7]
[332653152,1721405492312,-218.803622,0.00033835,7]
[332653153,1721405492326,-218.80362,0.00033835,7]
[332653154,1721405492336,-184.175319,0.00033835,7]
[332653155,1721405492347,-184.175319,0.00033835,7]
[332653156,1721405492356,-184.175319,0.00033835,7]
[332653157,1721405492365,-184.175324,0.00033835,7]
[332653158,1721405492375,-336.52201294,0.00033872,2]
[332653159,1721405492385,-4419.31821309,0.00033872,2]
[332653160,1721405492396,-834.5137671,0.00033872,2]
[332653161,1721405492406,-707.81617979,0.00033877,15]
[332653162,1721405492416,-783.93,0.000339,2]
[332653163,1721405492426,-727.83,0.000339,2]
[332653164,1721405492435,-500.0,0.00033917,54]
[332653165,1721405492444,-590.75,0.00033917,54]
[332653166,1721405492454,-1062.2,0.0003396,2]
[332653167,1721405492464,-856.35,0.0003397,14]
[332653168,1721405492474,-500.0,0.0003397,14]
[332653169,1721405492484,-200.0,0.0003397,7]
[332653170,1721405492493,-840.65,0.0003397,30]
[332653171,1721405492503,-1529.28,0.0003397,14]
[332653172,1721405492512,-500.0,0.0003397,14]
[332653173,1721405492522,-500.0,0.0003397,14]
[332653174,1721405492531,-867.41,0.0003397,14]
[332653175,1721405492540,-1531.41,0.0003397,17]
[332653176,1721405492551,-162.90791457,0.00033972,2]
[332653177,1721405492560,-500.0,0.00033972,14]
[332653178,1721405492569,-729.12,0.00033972,14]
[332653179,1721405492578,-500.0,0.00033972,14]
[332653180,1721405492588,-506.72148995,0.00033972,14]
[332653181,1721405492597,-500.0,0.00033972,14]
[332653182,1721405492608,-500.0,0.00033972,14]
[332653183,1721405492620,-964.89,0.00033972,14]
[332653184,1721405492629,-500.0,0.00033972,14]
[332653185,1721405492639,-1397.42,0.00033972,14]
[332653186,1721405492650,-507.4,0.00033972,14]
[332653187,1721405492659,-500.0,0.00033972,14]
[332653188,1721405492669,-1273.65,0.00033972,14]
[332653189,1721405492678,-500.0,0.00033972,14]
[332653190,1721405492688,-500.0,0.00033972,14]
[332653191,1721405492697,-500.0,0.00033972,14]
[332653192,1721405492707,-792.24,0.00033972,14]
[332653193,1721405492716,-1123.54,0.00033972,14]
[332653194,1721405492726,-2002.14,0.00033972,14]
[332653195,1721405492735,-734.79,0.00033972,14]
[332653196,1721405492744,-525.59,0.00033972,14]
[332653197,1721405492753,-500.0,0.00033972,14]
[332653198,1721405492763,-709.12,0.00033972,14]
[332653199,1721405492772,-500.0,0.00033972,14]
[332653200,1721405492782,-500.0,0.00033972,14]
[332653201,1721405492791,-500.0,0.00033972,14]
[332653202,1721405492800,-500.0,0.00033972,14]
[332653203,1721405492809,-1118.74,0.00033972,14]
[332653204,1721405492820,-1718.26,0.00033972,14]
[332653205,1721405492829,-1130.69,0.00033972,14]
[332653206,1721405492838,-853.38,0.00033972,14]
[332653207,1721405492848,-500.0,0.00033972,14]
[332653208,1721405492858,-500.0,0.00033972,14]
[332653209,1721405492867,-955.27,0.00033972,14]
[332653210,1721405492877,-647.66,0.00033972,14]
[332653211,1721405492886,-500.0,0.00033972,14]
[332653212,1721405492898,-1107.57,0.00033972,14]
[332653213,1721405492907,-500.0,0.00033972,14]
[332653214,1721405492916,-500.0,0.00033972,14]
[332653215,1721405492925,-500.0,0.00033972,14]
[332653216,1721405492935,-598.56474742,0.00033972,14]
[332653217,1721405492945,-222.59887312,0.00033972,14]
[332653218,1721405492954,-504.76324523,0.00033972,14]
[332653219,1721405492964,-546.29,0.00033972,14]
[332653220,1721405492974,-500.0,0.00033972,14]
[332653221,1721405492983,-898.82,0.00033972,14]
[332653222,1721405492993,-500.0,0.00033972,14]
[332653223,1721405493003,-500.0,0.00033972,14]
[332653224,1721405493013,-500.0,0.00033972,14]
[332653225,1721405493022,-500.0,0.00033972,14]
[332653226,1721405493033,-500.0,0.00033972,14]
[332653227,1721405493042,-500.0,0.00033972,14]
[332653228,1721405493052,-500.0,0.00033972,14]
[332653229,1721405493061,-500.0,0.00033972,14]
[332653230,1721405493071,-500.0,0.00033972,14]
[332653231,1721405493080,-500.0,0.00033972,14]
[332653232,1721405493090,-593.12,0.00033972,14]
[332653233,1721405493099,-500.0,0.00033972,14]
[332653234,1721405493108,-500.0,0.00033972,14]
[332653235,1721405493118,-500.0,0.00033972,14]
[332653236,1721405493128,-500.0,0.00033972,14]
[332653237,1721405493137,-1267.66,0.00033972,14]
[332653238,1721405493148,-1004.15,0.00033972,14]
[332653239,1721405493158,-500.0,0.00033972,14]
[332653240,1721405493168,-500.0,0.00033972,14]
[332653241,1721405493178,-501.69448783,0.00033972,14]
[332653242,1721405493187,-500.0,0.00033972,14]
[332653243,1721405493197,-494.69725991,0.00033972,14]
[332653244,1721405493207,-500.0,0.00033972,14]
[332653245,1721405493217,-500.0,0.00033972,14]
[332653246,1721405493228,-524.96,0.00033972,14]
[332653247,1721405493237,-500.0,0.00033972,14]
[332653248,1721405493249,-672.0,0.00033972,14]
[332653249,1721405493259,-500.0,0.00033972,14]
[332653250,1721405493269,-500.0,0.00033972,14]
[332653251,1721405493278,-1604.34,0.00033972,14]
[332653252,1721405493288,-500.0,0.00033972,14]
[332653253,1721405493298,-2684.0,0.00033972,14]
[332653254,1721405493307,-535.48689357,0.00033972,14]
[332653255,1721405493316,-1411.78,0.00033972,14]
[332653256,1721405493327,-500.0,0.00033972,14]
[332653257,1721405493336,-858.0,0.00033972,14]
[332653258,1721405493345,-500.0,0.00033972,14]
[332653259,1721405493355,-500.0,0.00033972,14]
[332653260,1721405493365,-1259.18,0.00033972,14]
[332653261,1721405493374,-500.0,0.00033972,14]
[332653262,1721405493384,-500.0,0.00033972,14]
[332653263,1721405493394,-500.0,0.00033972,14]
[332653264,1721405493404,-529.57940468,0.00033972,14]
[332653265,1721405493413,-928.26,0.00033972,14]
[332653266,1721405493423,-781.23,0.00033972,14]
[332653267,1721405493432,-500.0,0.00033972,14]
[332653268,1721405493442,-860.86,0.00033972,14]
[332653269,1721405493451,-756.27,0.00033972,14]
[332653270,1721405493461,-840.95,0.00033972,14]
[332653271,1721405493472,-579.58,0.00033972,14]
[332653272,1721405493481,-3829.75,0.00033972,14]
[332653273,1721405493491,-500.0,0.00033972,14]
[332653274,1721405493501,-992.53,0.00033972,14]
[332653275,1721405493510,-507.17344892,0.00033972,14]
[332653276,1721405493519,-512.29,0.00033972,14]
[332653277,1721405493528,-500.0,0.00033972,14]
[332653278,1721405493538,-500.0,0.00033972,14]
[332653279,1721405493547,-500.0,0.00033972,14]
[332653280,1721405493556,-1687.45,0.00033972,14]
[332653281,1721405493565,-500.0,0.00033972,14]
[332653282,1721405493574,-554.18,0.00033972,14]
[332653283,1721405493583,-2139.51,0.00033972,14]
[332653284,1721405493593,-3678.46,0.00033972,14]
[332653285,1721405493602,-1957.81,0.00033972,14]
[332653286,1721405493612,-500.0,0.00033972,14]
[332653287,1721405493622,-1102.24,0.00033972,14]
[332653288,1721405493631,-500.0,0.00033972,14]
[332653289,1721405493641,-500.0,0.00033972,14]
[332653290,1721405493652,-500.0,0.00033972,14]
[332653291,1721405493662,-2659.19,0.00033972,14]
[332653292,1721405493671,-500.0,0.00033972,14]
[332653293,1721405493683,-500.0,0.00033972,14]
[332653294,1721405493693,-500.0,0.00033972,14]
[332653295,1721405493702,-748.36,0.00033972,14]
[332653296,1721405493711,-500.0,0.00033972,14]
[332653297,1721405493721,-500.0,0.00033972,14]
[332653298,1721405493731,-500.0,0.00033972,14]
[332653299,1721405494036,-500.0,0.00033972,14]
[332653300,1721405494052,-500.0,0.00033972,14]
[332653301,1721405494061,-1342.76,0.00033972,14]
[332653302,1721405494071,-1446.86,0.00033972,14]
[332653303,1721405494080,-2318.73,0.00033972,14]
[332653304,1721405494090,-500.0,0.00033972,14]
[332653305,1721405494099,-500.0,0.00033972,14]
[332653306,1721405494108,-500.0,0.00033972,14]
[332653307,1721405494118,-968.02,0.00033972,14]
[332653308,1721405494127,-500.0,0.00033972,14]
[332653309,1721405494137,-500.0,0.00033972,14]
[332653310,1721405494147,-500.0,0.00033972,14]
[332653311,1721405494156,-1215.42,0.00033972,14]
[332653312,1721405494165,-500.0,0.00033972,14]
[332653313,1721405494175,-1189.06,0.00033972,14]
[332653314,1721405494184,-2711.43,0.00033972,14]
[332653315,1721405494193,-500.0,0.00033972,14]
[332653316,1721405494202,-500.0,0.00033972,14]
[332653317,1721405494212,-500.0,0.00033972,14]
[332653318,1721405494221,-717.63,0.00033972,14]
[332653319,1721405494232,-591.06,0.00033972,14]
[332653320,1721405494242,-952.61,0.00033972,14]
[332653321,1721405494254,-2016.29,0.00033972,14]
[332653322,1721405494263,-500.0,0.00033972,14]
[332653323,1721405494273,-500.0,0.00033972,14]
[332653324,1721405494282,-837.41,0.00033972,14]
[332653325,1721405494291,-500.0,0.00033972,14]
[332653326,1721405494300,-517.97,0.00033972,14]
[332653327,1721405494309,-1315.92,0.00033972,14]
[332653328,1721405494319,-1189.37,0.00033972,14]
[332653329,1721405494328,-787.01,0.00033972,14]
[332653330,1721405494337,-853.41,0.00033972,14]
[332653331,1721405494347,-500.0,0.00033972,14]
[332653332,1721405494357,-618.57,0.00033972,14]
[332653333,1721405494366,-922.88,0.00033972,14]
[332653334,1721405494375,-500.0,0.00033972,14]
[332653335,1721405494384,-1426.93,0.00033972,14]
[332653336,1721405494394,-500.0,0.00033972,14]
[332653337,1721405494405,-500.0,0.00033972,14]
[332653338,1721405494415,-2121.44,0.00033972,14]
[332653339,1721405494425,-1492.61,0.00033972,14]
[332653340,1721405494435,-2060.02,0.00033972,14]
[332653341,1721405494444,-500.0,0.00033972,14]
[332653342,1721405494453,-1270.35,0.00033972,14]
[332653343,1721405494463,-1782.26,0.00033972,14]
[332653344,1721405494472,-3015.1,0.00033972,14]
[332653345,1721405494481,-500.0,0.00033972,14]
[332653346,1721405494492,-1363.34,0.00033972,14]
[332653347,1721405494501,-529.0496618,0.00033972,14]
[332653348,1721405494511,-942.62,0.00033972,14]
[332653349,1721405494522,-1188.43,0.00033972,14]
[332653350,1721405494531,-500.0,0.00033972,14]
[332653351,1721405494541,-500.0,0.00033972,14]
[332653352,1721405494551,-2312.04,0.00033972,14]
[332653353,1721405494561,-500.0,0.00033972,14]
[332653354,1721405494571,-768.63,0.00033972,14]
[332653355,1721405494580,-508.22868034,0.00033972,14]
[332653356,1721405494590,-500.0,0.00033972,14]
[332653357,1721405494599,-500.0,0.00033972,14]
[332653358,1721405494608,-569.91,0.00033972,14]
[332653359,1721405494618,-500.0,0.00033972,14]
[332653360,1721405494627,-500.0,0.00033972,14]
[332653361,1721405494636,-500.0,0.00033972,14]
[332653362,1721405494648,-1535.53,0.00033972,14]
[332653363,1721405494659,-1425.08,0.00033972,14]
[332653364,1721405494669,-500.0,0.00033972,14]
[332653365,1721405494681,-785.93,0.00033972,14]
[332653366,1721405494691,-728.38,0.00033972,14]
[332653367,1721405494700,-3290.05,0.00033972,14]
[332653368,1721405494710,-829.12,0.00033972,14]
[332653369,1721405494720,-500.72689198,0.00033972,14]
[332653370,1721405494730,-500.0,0.00033972,14]
[332653371,1721405494740,-500.0,0.00033972,14]
[332653372,1721405494749,-918.05,0.00033972,14]
[332653373,1721405494759,-1257.94,0.00033972,14]
[332653374,1721405494769,-2459.5,0.00033972,14]
[332653375,1721405494779,-500.0,0.00033972,14]
[332653376,1721405494788,-500.0,0.00033972,14]
[332653377,1721405494798,-500.0,0.00033972,14]
[332653378,1721405494808,-798.81,0.00033972,14]
[332653379,1721405494818,-502.20057343,0.00033972,14]
[332653380,1721405494827,-742.79,0.00033972,14]
[332653381,1721405494837,-500.0,0.00033972,14]
[332653382,1721405494847,-500.0,0.00033972,14]
[332653383,1721405494857,-1058.6,0.00033972,14]
[332653384,1721405494866,-559.06,0.00033972,14]
[332653385,1721405494876,-500.0,0.00033972,14]
[332653386,1721405494885,-983.06,0.00033972,14]
[332653387,1721405494895,-500.0,0.00033972,14]
[332653388,1721405494906,-1339.89,0.00033972,14]
[332653389,1721405494916,-532.01,0.00033972,14]
[332653390,1721405494926,-501.72,0.00033972,14]
[332653391,1721405494936,-984.21,0.00033972,14]
[332653392,1721405494945,-708.71,0.00033972,14]
[332653393,1721405494955,-4177.7,0.00033972,14]
[332653394,1721405494964,-1412.03,0.00033972,14]
[332653395,1721405494974,-1608.43,0.00033972,14]
[332653396,1721405494983,-488.4973087,0.00033972,14]
[332653397,1721405494993,-620.3,0.00033972,14]
[332653398,1721405495002,-500.0,0.00033972,14]
[332653399,1721405495012,-667.6,0.00033972,14]
[332653400,1721405495021,-541.83,0.00033972,14]
[332653401,1721405495031,-1153.89,0.00033972,14]
[332653402,1721405495041,-500.0,0.00033972,14]
[332653403,1721405495050,-4221.72,0.00033972,14]
[332653404,1721405495059,-500.0,0.00033972,14]
[332653405,1721405495068,-500.0,0.00033972,14]
[332653406,1721405495077,-502.28572092,0.00033972,14]
[332653407,1721405495086,-990.52,0.00033972,14]
[332653408,1721405495095,-500.0,0.00033972,14]
[332653409,1721405495104,-2019.59,0.00033972,14]
[332653410,1721405495113,-616.92805034,0.00033972,14]
[332653411,1721405495123,-1099.48,0.00033972,14]
[332653412,1721405495133,-500.0,0.00033972,14]
[332653413,1721405495142,-500.0,0.00033972,14]
[332653414,1721405495153,-1257.09,0.00033972,14]
[332653415,1721405495162,-500.0,0.00033972,14]
[332653416,1721405495171,-547.27,0.00033972,14]
[332653417,1721405495180,-500.0,0.00033972,14]
[332653418,1721405495190,-2716.85,0.00033972,14]
[332653419,1721405495200,-1599.77,0.00033972,14]
[332653420,1721405495209,-500.0,0.00033972,14]
[332653421,1721405495218,-719.64,0.00033972,14]
[332653422,1721405495228,-857.73,0.00033972,14]
[332653423,1721405495238,-1986.48,0.00033972,14]
[332653424,1721405495248,-938.89,0.00033972,14]
[332653425,1721405495261,-500.0,0.00033972,14]
[332653426,1721405495271,-1434.26,0.00033972,14]
[332653427,1721405495281,-700.01,0.00033972,14]
[332653428,1721405495292,-500.0,0.00033972,14]
[332653429,1721405495303,-500.0,0.00033972,14]
[332653430,1721405495314,-500.0,0.00033972,14]
[332653431,1721405495325,-1795.89,0.00033972,14]
[332653432,1721405495335,-739.71,0.00033972,14]
[332653433,1721405495345,-500.0,0.00033972,14]
[332653434,1721405495355,-500.0,0.00033972,14]
[332653435,1721405495364,-925.24,0.00033972,14]
[332653436,1721405495375,-2641.15,0.00033972,14]
[332653437,1721405495384,-856.94,0.00033972,14]
[332653438,1721405495393,-690.03,0.00033972,14]
[332653439,1721405495407,-500.0,0.00033972,14]
[332653440,1721405495417,-1022.79,0.00033972,14]
[332653441,1721405495428,-1025.98,0.00033972,14]
[332653442,1721405495439,-712.85,0.00033972,14]
[332653443,1721405495448,-500.0,0.00033972,14]
[332653444,1721405495457,-644.42,0.00033972,14]
[332653445,1721405495467,-847.33,0.00033972,14]
[332653446,1721405495476,-2189.59,0.00033972,14]
[332653447,1721405495485,-500.0,0.00033972,14]
[332653448,1721405495495,-500.0,0.00033972,14]
[332653449,1721405495504,-748.24,0.00033972,14]
[332653450,1721405495513,-500.0,0.00033972,14]
[332653451,1721405495523,-500.0,0.00033972,14]
[332653452,1721405495533,-2660.99,0.00033972,14]
[332653453,1721405495543,-792.94,0.00033972,14]
[332653454,1721405495552,-500.0,0.00033972,14]
[332653455,1721405495561,-1669.97,0.00033972,14]
[332653456,1721405495571,-500.0,0.00033972,14]
[332653457,1721405495580,-500.0,0.00033972,14]
[332653458,1721405495590,-3200.91,0.00033972,14]
[332653459,1721405495599,-650.68,0.00033972,14]
[332653460,1721405495608,-576.05,0.00033972,14]
[332653461,1721405495618,-1188.46,0.00033972,14]
[332653462,1721405495627,-524.24,0.00033972,14]
[332653463,1721405495636,-2101.33,0.00033972,14]
[332653464,1721405495645,-500.0,0.00033972,14]
[332653465,1721405495656,-3620.33,0.00033972,14]
[332653466,1721405495665,-724.14,0.00033972,14]
[332653467,1721405495675,-500.0,0.00033972,14]
[332653468,1721405495684,-500.0,0.00033972,14]
[332653469,1721405495694,-1606.46,0.00033972,14]
[332653470,1721405495703,-2849.42,0.00033972,14]
[332653471,1721405495713,-500.0,0.00033972,14]
[332653472,1721405495722,-735.51,0.00033972,14]
[332653473,1721405495731,-504.93004136,0.00033972,14]
[332653474,1721405495741,-2219.39,0.00033972,14]
[332653475,1721405495750,-500.0,0.00033972,14]
[332653476,1721405495759,-1136.35,0.00033972,14]
[332653477,1721405495768,-3478.95,0.00033972,14]
[332653478,1721405495777,-1471.57,0.00033972,14]
[332653479,1721405495787,-500.0,0.00033972,14]
[332653480,1721405495798,-536.55,0.00033972,14]
[332653481,1721405495809,-619.21,0.00033972,14]
[332653482,1721405495819,-3703.31,0.00033972,14]
[332653483,1721405495830,-1121.26,0.00033972,14]
[332653484,1721405495839,-552.02,0.00033972,14]
[332653485,1721405495849,-500.0,0.00033972,14]
[332653486,1721405495858,-500.0,0.00033972,14]
[332653487,1721405495868,-1380.4,0.00033972,14]
[332653488,1721405495877,-504.74213636,0.00033972,14]
[332653489,1721405495886,-1550.95,0.00033972,14]
[332653490,1721405495896,-608.07654418,0.00033972,14]
[332653491,1721405495907,-500.0,0.00033972,14]
[332653492,1721405495916,-1560.94,0.00033972,14]
[332653493,1721405495926,-500.0,0.00033972,14]
[332653494,1721405495936,-522.62,0.00033972,14]
[332653495,1721405495945,-305.66638621,0.00033972,14]